bitfinex-derivatives/quotes_ETHF0:USTF0_20250212
["timestamp","ask_amount","ask_price","bid_price","bid_amount"]
[1739361023115,5.60480663,2632.3,2631.9,3.2078]
[1739361023311,0.5936,2632.2,2631.9,3.2078]
[1739361023515,0.5745,2632.1,2632.0,0.18713934]
[1739361023908,0.5745,2632.1,2631.9,3.2078]
[1739361025214,0.5745,2632.1,2632.0,0.00342835]
[1739361025814,2.2285,2632.1,2632.0,0.00342835]
[1739361027714,2.2285,2632.1,2631.4,0.30901848]
[1739361027715,2.2285,2632.1,2631.6,3.2078]
[1739361028016,3.39960663,2631.7,2631.6,3.2078]
[1739361029315,3.39960663,2631.7,2631.2,3.2078]
[1739361029616,1.2104,2631.6,2631.2,3.2078]
[1739361029816,1.654,2631.5,2631.0,0.56]
[1739361030015,3.39960663,2631.4,2630.9,3.50838547]
[1739361030422,3.39960663,2631.4,2630.9,3.2078]
[1739361030814,0.5863,2631.3,2630.9,3.2078]
[1739361031216,0.5665,2631.2,2630.9,3.2078]
[1739361031409,3.39960663,2631.1,2630.9,3.2078]
[1739361031612,3.99730663,2631.1,2630.9,3.2078]
[1739361033624,3.99730663,2631.1,2630.6,0.18706332]
[1739361036516,3.39960663,2630.8,2630.6,0.18706332]
[1739361036719,1.1069,2630.7,2630.6,3.32e-06]
[1739361036919,1.1069,2630.7,2630.2,3.2078]
[1739361037122,0.5737,2630.6,2630.2,3.2078]
[1739361038618,3.39960663,2630.5,2630.2,3.2078]
[1739361039522,0.5737,2630.6,2630.2,3.2078]
[1739361039716,3.7815,2630.6,2630.2,3.2078]
[1739361040814,3.2078,2630.6,2630.2,3.2078]
[1739361041822,3.2078,2630.6,2630.3,0.4313]
[1739361042221,0.58080104,2631.0,2630.5,3.2078]
[1739361042423,2.23580104,2631.0,2630.6,0.5839]
[1739361043416,1.66070104,2631.0,2630.6,0.5839]
[1739361046826,0.00570104,2631.0,2630.6,0.5839]
[1739361047930,0.00570104,2631.0,2630.9,3.40184659]
[1739361056530,0.00570104,2631.0,2630.9,44.20184659]
[1739361057731,0.00570104,2631.0,2630.9,3.40184659]
[1739361058239,0.00570104,2631.0,2630.9,44.20184659]
[1739361059335,0.00570104,2631.0,2630.9,44.5118311]
[1739361063036,3.2078,2631.5,2630.9,44.5118311]
[1739361063264,3.2078,2631.5,2630.9,3.7118311]
[1739361063435,0.5747,2631.4,2630.9,3.7118311]
[1739361064035,3.97430663,2631.4,2630.9,3.7118311]
[1739361064242,3.98000767,2631.4,2630.9,3.7118311]
[1739361065547,0.58040104,2631.4,2630.9,3.7118311]
[1739361072038,0.00570104,2631.4,2630.9,3.7118311]
[1739361072245,0.00570104,2631.4,2631.0,0.3854]
[1739361072550,0.00570104,2631.4,2631.1,0.5667]
[1739361073145,0.00570104,2631.4,2630.9,3.7118311]
[1739361075247,0.00570104,2631.4,2630.9,3.40184659]
[1739361081855,3.40530767,2631.4,2630.9,3.40184659]
[1739361082262,3.39960663,2631.1,2630.9,3.40184659]
[1739361082460,1.7706,2631.0,2630.9,3.40184659]
[1739361088160,0.5928,2631.0,2630.9,3.40184659]
[1739361088373,1.654,2631.2,2630.9,3.40184659]
[1739361088660,1.1558,2631.3,2630.9,3.40184659]
[1739361091766,1.7597,2631.3,2630.9,3.40184659]
[1739361094268,3.39960663,2631.1,2630.9,3.40184659]
[1739361098065,3.39960663,2631.1,2630.9,0.19404659]
[1739361100164,3.39960663,2631.1,2630.7,1.04e-06]
[1739361100470,6.60740663,2630.8,2630.7,1.04e-06]
[1739361100671,8.26140663,2630.8,2630.7,1.04e-06]
[1739361101665,8.26140663,2630.8,2630.7,0.18725334]
[1739361101862,8.26140663,2630.8,2630.7,3.34e-06]
[1739361102673,6.60740663,2630.8,2630.7,3.34e-06]
[1739361102872,4.8618,2630.8,2630.7,3.34e-06]
[1739361103777,3.2078,2630.8,2630.7,3.34e-06]
[1739361103977,4.8618,2630.8,2630.7,3.34e-06]
[1739361105276,3.2078,2630.8,2630.7,3.34e-06]
[1739361105476,4.8618,2630.8,2630.7,3.34e-06]
[1739361106882,4.8628,2630.8,2630.7,3.34e-06]
[1739361108173,8.26240663,2630.8,2630.7,3.34e-06]
[1739361108375,12.60740663,2630.8,2630.3,3.2078]
[1739361108578,12.60740663,2630.8,2629.9,0.4309]
[1739361108579,3.39960663,2630.5,2630.0,3.2078]
[1739361109780,3.3993,2630.7,2630.0,3.2078]
[1739361109982,3.3993,2630.7,2630.1,0.3853]
[1739361113284,3.39960663,2630.5,2630.1,0.3853]
[1739361113480,3.2078,2630.4,2630.0,3.2078]
[1739361113713,0.5694,2630.3,2630.0,3.2078]
[1739361113874,1.1755,2630.3,2630.0,3.2078]
[1739361114486,1.1755,2630.3,2629.9,0.5682]
[1739361115381,0.5792,2630.2,2629.9,0.5682]
[1739361115583,1.655,2630.1,2629.9,0.5682]
[1739361119193,1.655,2630.1,2629.7,3.2078]
[1739361122687,1.655,2630.1,2629.8,0.3857]
[1739361123290,1.655,2630.1,2629.7,3.2078]
[1739361124788,1.655,2630.1,2629.8,0.4313]
[1739361125285,1.655,2630.1,2629.9,0.3857]
[1739361125592,0.5694,2630.3,2630.0,3.2078]
[1739361125792,1.655,2630.3,2630.1,0.5863]
[1739361126099,1.655,2630.5,2630.2,0.4313]
[1739361126499,1.655,2630.5,2630.3,0.3857]
[1739361126896,3.2078,2631.0,2630.4,3.2078]
[1739361127097,4.8628,2631.0,2630.4,3.2078]
[1739361127399,5.05460663,2631.1,2630.7,3.2078]
[1739361127600,5.05460663,2631.1,2630.8,0.593]
[1739361128086,1.655,2631.1,2630.8,0.593]
[1739361128490,1.655,2631.1,2630.8,0.9786]
[1739361128697,1.655,2631.1,2630.9,0.18728692]
[1739361128902,5.05460663,2631.1,2630.9,0.18728692]
[1739361130495,8.26240663,2631.1,2630.4,3.2078]
[1739361130703,3.39960663,2630.5,2630.4,3.2078]
[1739361130887,5.05460663,2630.5,2630.4,3.2078]
[1739361132099,1.655,2630.5,2630.4,3.2078]
[1739361132301,1.654,2630.6,2630.4,3.2078]
[1739361133698,0.5657,2630.5,2630.4,3.2078]
[1739361133894,3.96530663,2630.5,2630.4,3.2078]
[1739361135792,0.5657,2630.5,2630.4,3.2078]
[1739361139298,0.5657,2630.5,2630.0,0.3854]
[1739361141404,0.5657,2630.5,2629.9,3.7758]
[1739361141800,0.5657,2630.5,2630.0,0.4311]
[1739361142600,0.5657,2630.5,2630.2,3.2078]
[1739361142806,2.2197,2630.5,2630.2,3.2078]
[1739361143006,2.2197,2630.5,2630.3,0.3856]
[1739361143306,1.654,2630.5,2630.4,0.5866]
[1739361143899,1.654,2630.5,2630.2,3.2078]
[1739361144101,0.5745,2630.4,2630.2,3.2078]
[1739361144600,0.5995,2630.3,2630.2,3.2078]
[1739361145100,3.8073,2630.3,2629.9,3.7944]
[1739361145306,3.39960663,2630.2,2629.6,3.2078]
[1739361145505,0.5848,2630.1,2629.6,3.2078]
[1739361146007,3.39960663,2629.9,2629.6,3.2078]
[1739361146298,2.2561,2629.8,2629.6,3.2078]
[1739361146505,2.8215,2629.8,2629.6,3.2078]
[1739361155799,2.8215,2629.8,2629.3,3.2078]
[1739361158509,3.39960663,2629.4,2629.2,0.19329749]
[1739361158810,1.7339,2629.3,2629.2,0.19329749]
[1739361159007,1.7339,2629.3,2629.2,7.49e-06]
[1739361160101,1.7339,2629.3,2629.0,3.2078]
[1739361160408,3.39960663,2629.1,2628.7,3.2078]
[1739361160604,3.39960663,2628.8,2628.7,3.2078]
[1739361160902,3.39960663,2628.8,2628.7,3.39619277]
[1739361161102,3.39960663,2629.1,2628.7,3.39619277]
[1739361162111,1.655,2629.0,2628.7,3.39619277]
[1739361163408,1.655,2629.0,2628.7,0.18839277]
[1739361163810,0.5933,2628.9,2628.7,0.18839277]
[1739361164011,0.6016,2628.8,2628.7,0.18839277]
[1739361164613,0.6016,2628.8,2628.3,3.2078]
[1739361164813,3.39960663,2628.5,2628.3,3.2078]
[1739361165812,0.00570104,2628.7,2628.3,3.2078]
[1739361166115,1.655,2628.6,2628.4,0.5555]
[1739361166703,0.00570104,2628.7,2628.4,0.5555]
[1739361166909,0.00570104,2628.7,2628.5,0.3859]
[1739361168624,3.7924,2629.0,2628.5,0.3859]
[1739361168625,3.2078,2629.0,2628.5,1.4819]
[1739361168820,3.2078,2630.0,2628.9,3.2078]
[1739361169120,3.2078,2630.0,2629.0,4.55900663]
[1739361169924,0.00570104,2629.8,2629.2,3.2078]
[1739361170810,0.00570104,2629.8,2629.3,40.8]
[1739361171340,4.01250767,2629.8,2629.3,40.8]
[1739361171516,4.01250767,2629.8,2629.2,3.2078]
[1739361171517,3.2078,2629.6,2629.2,3.2078]
[1739361172019,0.5978,2629.5,2629.2,3.2078]
[1739361172720,0.5978,2629.5,2629.0,1.1594]
[1739361173220,0.6,2629.4,2628.8,3.51769582]
[1739361173431,4.8728,2629.3,2628.8,3.2078]
[1739361174422,3.2078,2629.0,2628.7,0.19411784]
[1739361175022,1.1688,2628.9,2628.7,0.19411784]
[1739361176714,4.56840663,2628.9,2628.7,0.19411784]
[1739361177724,0.5505,2628.8,2628.7,0.19411784]
[1739361178223,0.5505,2628.8,2628.3,3.21350104]
[1739361178431,3.39960663,2628.6,2628.3,3.21350104]
[1739361180533,1.669,2628.7,2628.3,3.21350104]
[1739361180725,1.669,2628.7,2628.4,40.8]
[1739361181030,1.669,2628.7,2628.3,3.21350104]
[1739361181228,3.39960663,2628.6,2628.3,0.00570104]
[1739361183232,0.5711,2628.5,2628.3,0.00570104]
[1739361190235,3.2078,2628.4,2628.3,1.04e-06]
[1739361192838,3.809,2628.4,2628.3,1.04e-06]
[1739361195033,4.3797,2628.4,2628.3,1.04e-06]
[1739361195634,10.3797,2628.4,2628.3,1.04e-06]
[1739361195843,3.39960663,2627.7,2627.3,3.40218588]
[1739361196137,2.8176,2627.6,2627.3,3.40218588]
[1739361196733,2.8176,2627.6,2627.3,0.19438588]
[1739361196937,2.8176,2627.6,2627.3,3.40218588]
[1739361197143,2.8176,2627.6,2627.4,1.1808]
[1739361197445,1.678,2627.6,2627.4,1.1808]
[1739361197644,1.678,2627.6,2627.5,0.5906]
[1739361197878,0.00570104,2627.7,2627.5,0.5906]
[1739361197879,6.60740663,2628.7,2627.5,3.99020663]
[1739361198141,3.39960663,2628.4,2627.5,7.19800663]
[1739361198342,0.5779,2628.3,2627.6,40.8]
[1739361198545,6.60740663,2628.1,2627.6,40.8]
[1739361198745,1.683,2628.0,2627.6,40.8]
[1739361198942,1.683,2628.0,2627.6,40.80570104]
[1739361199133,0.5779,2627.9,2627.6,0.00570104]
[1739361199340,6.60740663,2627.8,2627.6,1.04e-06]
[1739361199647,0.5515,2627.7,2627.6,1.04e-06]
[1739361200745,3.2078,2627.8,2627.6,1.04e-06]
[1739361200944,1.684,2627.8,2627.6,1.04e-06]
[1739361201139,1.684,2627.9,2627.6,1.04e-06]
[1739361201643,3.97720767,2628.1,2627.6,1.04e-06]
[1739361201644,0.00570104,2628.1,2627.6,1.04e-06]
[1739361201843,0.00570104,2628.1,2627.7,3.2078]
[1739361202045,0.00570104,2628.1,2627.8,0.5749]
[1739361202346,0.00570104,2628.1,2627.9,0.5796]
[1739361202843,3.40530767,2628.1,2627.9,0.5796]
[1739361203241,4.00910767,2628.1,2627.9,0.5796]
[1739361203938,0.60950104,2628.1,2627.9,0.5796]
[1739361204546,2.29350104,2628.1,2627.9,0.5796]
[1739361204943,1.68970104,2628.1,2627.9,0.5796]
[1739361207048,0.00570104,2628.1,2627.9,0.5796]
[1739361207749,0.00570104,2628.1,2627.5,3.97100663]
[1739361207750,6.79921326,2628.0,2626.1,3.2078]
[1739361207944,6.79921326,2628.0,2626.4,3.2078]
[1739361207945,3.2078,2627.1,2626.4,3.2078]
[1739361208251,1.699,2627.0,2626.5,0.5744]
[1739361209943,3.2078,2627.4,2626.7,3.2078]
[1739361210543,0.43607006,2627.7,2627.1,3.2078]
[1739361210739,4.383,2627.8,2627.2,1.7758]
[1739361210944,4.81883175,2627.8,2627.2,1.7758]
[1739361211246,4.383,2627.8,2627.2,1.7758]
[1739361211747,3.2078,2627.8,2627.2,1.7758]
[1739361211943,3.2078,2627.8,2627.3,0.18636058]
[1739361213355,2.8724,2628.0,2627.4,3.2078]
[1739361213752,2.8724,2628.0,2627.5,40.8]
[1739361214050,3.2078,2627.8,2627.4,3.2078]
[1739361214852,3.2078,2627.8,2627.3,40.98636058]
[1739361215053,3.2078,2627.8,2627.3,0.18636058]
[1739361216448,7.18660552,2627.8,2627.3,0.18636058]
[1739361216648,1.01571061,2627.9,2627.3,0.18636058]
[1739361216649,7.18660552,2627.5,2627.3,5.8e-07]
[1739361216850,7.18660552,2627.5,2627.0,1.096]
[1739361216851,3.4183,2627.4,2627.0,1.096]
[1739361217058,3.2078,2627.1,2627.0,1.096]
[1739361217260,3.2078,2627.1,2626.6,0.5902]
[1739361218446,3.2078,2626.8,2626.1,0.29639512]
[1739361218652,3.2078,2626.8,2626.3,0.5902]
[1739361218854,3.77380104,2626.8,2626.3,0.5902]
[1739361219362,3.21350104,2626.8,2626.3,0.5902]
[1739361220461,3.7655,2627.4,2626.6,3.2078]
[1739361220670,3.97880552,2627.5,2626.9,3.2078]
[1739361220855,3.97880552,2627.5,2627.0,0.5587]
[1739361221055,4.54320552,2627.5,2627.0,0.5587]
[1739361221654,3.2078,2627.4,2627.0,0.5587]
[1739361222162,3.2078,2627.4,2626.7,41.9428]
[1739361222362,3.2078,2627.4,2626.8,0.5664]
[1739361223159,3.2078,2627.4,2626.9,3.2078]
[1739361223760,3.2078,2627.4,2627.3,0.18892143]
[1739361224261,3.2078,2627.4,2626.8,0.5664]
[1739361226669,3.2078,2627.4,2626.7,40.8]
[1739361229170,4.9148,2627.4,2626.7,40.8]
[1739361230671,4.9148,2627.4,2627.3,0.19406917]
[1739361233371,4.9148,2627.4,2626.7,40.8]
[1739361233565,5.35103138,2627.4,2626.7,40.8]
[1739361233765,3.2078,2627.1,2626.7,40.8]
[1739361233962,1.1304,2627.0,2626.7,40.8]
[1739361234176,1.1304,2627.0,2626.6,3.2078]
[1739361234566,1.1304,2627.0,2626.6,44.0078]
[1739361235375,1.1304,2627.0,2626.6,3.2078]
[1739361235571,4.55248498,2627.0,2626.6,3.2078]
[1739361235870,3.42208498,2626.7,2626.6,3.2078]
[1739361236477,3.42208498,2626.7,2626.3,40.80570104]
[1739361236976,3.42208498,2626.7,2626.3,0.00570104]
[1739361237371,3.2078,2626.5,2626.3,0.00570104]
[1739361237570,4.03068498,2626.4,2626.3,0.00570104]
[1739361237870,4.03068498,2626.4,2625.9,3.39963643]
[1739361237871,4.59308498,2626.4,2625.9,3.39963643]
[1739361238765,4.59308498,2626.4,2625.9,0.19183643]
[1739361238766,3.2078,2626.2,2625.9,0.19183643]
[1739361239270,3.42208498,2626.1,2625.9,0.19183643]
[1739361241874,3.2078,2626.2,2625.9,0.19183643]
[1739361242171,3.2078,2626.2,2626.0,0.559]
[1739361242376,3.42208498,2626.1,2625.9,0.19183643]
[1739361242573,4.02268498,2626.1,2625.9,0.19183643]
[1739361244475,3.42208498,2626.1,2625.9,0.19183643]
[1739361249382,4.9148,2626.2,2625.9,0.19183643]
[1739361249577,4.9148,2626.2,2626.0,0.5893]
[1739361250185,3.2078,2626.2,2626.0,0.5893]
[1739361250579,3.2078,2626.5,2626.1,0.00541656]
[1739361251588,3.2078,2626.5,2626.2,40.8]
[1739361252288,3.42208498,2626.4,2626.2,40.8]
[1739361252490,4.01988498,2626.4,2626.1,0.00541656]
[1739361252683,3.2078,2626.2,2626.1,0.00541656]
[1739361255408,0.5887,2626.6,2626.1,0.00541656]
[1739361255409,3.2078,2626.5,2626.1,0.00541656]
[1739361255893,3.2078,2626.5,2626.1,0.55411656]
[1739361256387,3.2078,2626.8,2626.1,0.55411656]
[1739361256588,3.2078,2627.1,2626.3,6.62988498]
[1739361258495,3.2078,2627.1,2626.4,40.8]
[1739361258694,3.2078,2627.1,2626.5,1.1764]
[1739361258891,3.2078,2627.1,2626.6,0.5498]
[1739361259297,3.2078,2627.1,2626.6,3.7576]
[1739361259991,6.62988498,2627.1,2626.6,3.7576]
[1739361260189,7.19958498,2627.1,2626.6,3.7576]
[1739361262095,7.19958498,2627.1,2626.6,3.2078]
[1739361262799,3.7775,2627.1,2626.6,3.2078]
[1739361263492,7.19958498,2627.1,2626.6,3.2078]
[1739361263997,3.2078,2627.1,2626.6,3.2078]
[1739361264794,6.62988498,2627.1,2626.6,3.2078]
[1739361269302,1.127,2627.2,2626.4,41.3508]
[1739361269303,6.62988498,2626.8,2626.4,40.8]
[1739361269599,1.58650969,2626.7,2626.3,3.2078]
[1739361269800,2.19540969,2626.7,2626.3,3.2078]
[1739361270002,2.19540969,2626.7,2626.3,44.0078]
[1739361270301,2.19540969,2626.7,2626.3,3.2078]
[1739361272302,2.19540969,2626.7,2626.1,40.80541656]
[1739361272503,2.19540969,2626.7,2626.2,3.2078]
[1739361272803,3.42208498,2626.5,2626.2,3.2078]
[1739361273597,3.42208498,2626.5,2626.1,40.80541656]
[1739361273598,6.62988498,2626.5,2626.1,40.80541656]
[1739361273798,0.43612084,2626.4,2626.1,40.80541656]
[1739361274000,0.43612084,2626.4,2626.1,0.00541656]
[1739361274405,6.62988498,2626.5,2626.1,0.00541656]
[1739361274709,3.2078,2626.2,2626.1,0.00541656]
[1739361276797,6.62988498,2626.5,2626.1,0.00541656]
[1739361280201,3.2078,2626.5,2626.1,0.00541656]
[1739361282402,6.62988498,2626.5,2626.1,0.00541656]
[1739361286409,3.2078,2626.5,2626.1,0.00541656]
[1739361286912,3.2078,2627.0,2626.2,3.2078]
[1739361287211,0.5721,2626.7,2626.5,3.2078]
[1739361290009,3.2078,2627.0,2626.5,3.2078]
[1739361290210,0.5679,2626.7,2626.5,3.2078]
[1739361293413,0.5679,2626.7,2626.6,0.5793]
[1739361297011,0.5812,2626.9,2626.6,0.5793]
[1739361300319,0.5831,2627.1,2626.6,0.5793]
[1739361301819,0.5831,2627.1,2626.7,40.8]
[1739361302222,1.04373049,2627.2,2626.7,40.8]
[1739361302418,0.6073,2627.2,2626.8,0.5753]
[1739361302616,0.6073,2627.2,2626.9,0.5797]
[1739361304919,3.2078,2627.3,2626.9,0.5797]
[1739361305122,1.13630104,2627.5,2627.0,3.2078]
[1739361305420,1.13630104,2627.5,2627.1,0.6083]
[1739361305818,1.13630104,2627.5,2627.2,0.5503]
[1739361306122,0.00570104,2627.5,2627.3,3.2078]
[1739361306316,0.00570104,2627.5,2627.4,0.6052]
[1739361306826,1.1306,2627.9,2627.4,0.6052]
[1739361307723,1.1306,2627.9,2627.4,0.610912]
[1739361307917,1.136312,2627.9,2627.4,0.610912]
[1739361309123,0.583012,2627.9,2627.4,0.610912]
[1739361309426,0.583012,2627.9,2627.5,3.42208498]
[1739361309427,0.005712,2627.9,2627.5,3.42208498]
[1739361309620,0.005712,2627.9,2627.6,1.1517]
[1739361310228,0.005712,2627.9,2627.7,40.8]
[1739361310828,0.005712,2627.9,2627.7,44.0078]
[1739361312022,0.005712,2627.9,2627.7,3.2078]
[1739361312534,0.005712,2627.9,2627.7,44.0078]
[1739361313433,3.2078,2628.4,2627.7,44.0078]
[1739361313826,3.2078,2628.4,2627.8,3.42208498]
[1739361314027,3.2078,2628.4,2627.9,0.5884]
[1739361314424,3.2078,2628.4,2628.0,0.5577]
[1739361314631,3.213512,2628.4,2628.1,0.5598]
[1739361315825,0.005712,2628.4,2628.1,0.5598]
[1739361316837,3.2078,2628.8,2628.1,3.98188498]
[1739361317036,1.1656,2628.7,2628.1,3.98188498]
[1739361317238,1.1656,2628.7,2628.1,0.5598]
[1739361317823,1.171312,2628.7,2628.1,0.5598]
[1739361318943,1.171312,2628.7,2628.1,0.86154836]
[1739361320739,1.171312,2628.7,2628.1,0.30174836]
[1739361320942,1.171312,2628.7,2628.0,3.2078]
[1739361321636,3.42208498,2628.6,2628.0,3.2078]
[1739361321830,3.42208498,2628.6,2628.0,3.50758347]
[1739361324642,1.171312,2628.7,2628.0,3.50758347]
[1739361325131,1.171312,2628.7,2628.1,3.42208498]
[1739361326134,1.171312,2628.7,2628.3,3.2078]
[1739361326638,1.171312,2628.7,2628.3,3.7674]
[1739361327437,0.005712,2628.7,2628.4,0.5838]
[1739361331638,0.005712,2628.7,2628.5,40.8]
[1739361334943,0.005712,2628.7,2628.5,44.0078]
[1739361337540,3.6426759,2629.1,2628.5,44.0078]
[1739361337747,1.7501,2629.0,2628.5,3.2078]
[1739361338645,3.42208498,2628.9,2628.5,3.2078]
[1739361339045,3.85696088,2628.9,2628.5,3.2078]
[1739361341543,3.85696088,2628.9,2628.8,0.18704912]
[1739361357161,0.4348759,2628.9,2628.8,0.18704912]
[1739361357456,4.963612,2629.0,2628.8,0.18704912]
[1739361357457,5.3984879,2629.0,2628.8,0.18704912]
[1739361361659,3.42208498,2628.9,2628.8,0.18704912]
[1739361361862,3.85696088,2628.9,2628.8,0.18704912]
[1739361364664,3.85696088,2628.9,2628.8,9.12e-06]
[1739361365163,9.85696088,2628.9,2628.8,9.12e-06]
[1739361365365,6.94407616,2628.9,2628.8,9.12e-06]
[1739361365762,6.94407616,2628.9,2628.3,0.00336828]
[1739361365958,3.42208498,2628.5,2628.3,0.00336828]
[1739361366267,0.5502,2628.4,2628.3,0.00336828]
[1739361369971,0.4348759,2628.6,2628.3,0.00336828]
[1739361369972,3.6426759,2628.7,2628.3,0.00336828]
[1739361370165,0.4348759,2628.7,2628.3,0.00336828]
[1739361370364,3.85696088,2628.8,2628.3,0.00336828]
[1739361370564,3.85696088,2628.8,2628.4,40.8]
[1739361370768,0.4348759,2628.8,2628.5,1.7264]
[1739361370966,2.8109,2628.9,2628.5,1.7264]
[1739361371161,0.5933,2628.9,2628.5,1.7264]
[1739361371765,0.4405879,2629.0,2628.5,1.7264]
[1739361372471,0.005712,2629.0,2628.5,1.7264]
[1739361376169,0.005712,2629.0,2628.6,40.8]
[1739361377069,0.005712,2629.0,2628.9,0.1935792]
[1739361379773,1.02782162,2629.0,2628.9,0.1935792]
[1739361379966,3.82582162,2629.0,2628.9,0.1935792]
[1739361384877,3.82182162,2629.0,2628.9,0.1935792]
[1739361385575,3.25172162,2629.0,2628.9,0.1935792]
[1739361385766,1.58872162,2629.0,2628.9,0.1935792]
[1739361386675,2.16922162,2629.0,2628.9,0.1935792]
[1739361388871,12.09966772,2629.0,2628.2,0.5965]
[1739361389075,12.09966772,2629.0,2628.1,3.2078]
[1739361389076,3.42208498,2628.6,2628.1,3.2078]
[1739361389268,1.1696,2628.5,2628.1,3.2078]
[1739361389583,1.60570962,2628.5,2628.1,3.2078]
[1739361391378,2.17990962,2628.5,2628.1,3.2078]
[1739361392879,1.60570962,2628.5,2628.1,3.2078]
[1739361393279,1.60570962,2628.5,2628.2,0.5632]
[1739361393480,1.60570962,2628.5,2628.2,1.1377]
[1739361394382,1.60570962,2628.5,2628.1,3.2078]
[1739361394781,0.5622,2628.4,2628.1,3.2078]
[1739361397782,1.1696,2628.5,2628.1,3.2078]
[1739361400285,0.6047,2628.5,2628.1,3.51575841]
[1739361404091,0.6047,2628.5,2628.3,0.00336828]
[1739361406387,0.586,2628.8,2628.3,0.00336828]
[1739361406595,0.586,2628.8,2628.4,3.2078]
[1739361406785,0.586,2628.8,2628.5,1.7112]
[1739361406990,1.1853,2628.8,2628.5,1.1543]
[1739361407885,1.1853,2628.8,2628.5,0.5626]
[1739361408480,4.3931,2628.8,2628.3,0.00336828]
[1739361409782,4.82955805,2628.8,2628.3,0.00336828]
[1739361412295,3.42208498,2628.6,2628.3,0.00336828]
[1739361412790,0.5798,2628.5,2628.3,0.00336828]
[1739361414391,3.7876,2628.5,2628.3,0.00336828]
[1739361414597,4.22405805,2628.5,2628.3,0.00336828]
[1739361414792,1.659,2628.4,2628.3,0.00336828]
[1739361414998,2.09545805,2628.4,2628.3,0.00336828]
[1739361415695,1.659,2628.4,2628.3,0.00336828]
[1739361416402,1.659,2628.4,2628.1,3.2078]
[1739361416601,4.60238498,2628.3,2627.8,3.2078]
[1739361418908,5.03911257,2628.3,2627.8,3.2078]
[1739361419401,4.60238498,2628.3,2627.8,3.2078]
[1739361421308,5.03904142,2628.3,2627.8,3.2078]
[1739361421703,3.42208498,2628.0,2627.5,4.64960309]
[1739361421902,0.603,2627.9,2627.5,3.2078]
[1739361422105,3.42208498,2627.7,2627.3,0.6009]
[1739361422405,5.08108498,2627.7,2627.2,3.2078]
[1739361423208,5.08108498,2627.7,2627.4,0.19255205]
[1739361425104,1.1049,2627.8,2627.4,0.19255205]
[1739361426611,0.5533,2627.8,2627.5,3.7707]
[1739361426811,0.5533,2627.8,2627.6,0.5919]
[1739361427311,0.5533,2627.8,2627.5,3.2078]
[1739361428209,0.5533,2627.8,2627.4,0.19255205]
[1739361428605,3.42208498,2627.7,2627.4,0.19255205]
[1739361428804,0.6048,2627.6,2627.4,0.19255205]
[1739361429212,0.5492,2627.5,2627.4,0.19255205]
[1739361430107,0.5492,2627.5,2627.4,2.05e-06]
[1739361430408,0.5492,2627.5,2626.9,3.2078]
[1739361430713,3.42208498,2627.2,2626.9,3.2078]
[1739361431011,1.7023,2627.1,2626.6,3.2078]
[1739361431202,3.42208498,2626.9,2626.6,3.213512]
[1739361438024,1.708012,2627.1,2626.6,3.213512]
[1739361438318,0.554912,2627.1,2626.7,1.7424]
[1739361439517,0.554912,2627.1,2626.7,1.1642]
[1739361439717,3.42208498,2626.9,2626.6,3.213512]
[1739361440319,3.42208498,2626.9,2626.6,0.005712]
[1739361443822,3.2078,2626.7,2626.6,0.005712]
[1739361444032,3.2078,2626.7,2626.6,2e-06]
[1739361444218,4.8688,2626.7,2626.6,2e-06]
[1739361449727,6.019,2626.7,2626.6,2e-06]
[1739361455330,6.4549331,2626.7,2626.6,2e-06]
[1739361459240,12.4549331,2626.7,2626.6,2e-06]
[1739361460636,6.4549331,2626.7,2626.6,2e-06]
[1739361460838,12.4549331,2626.7,2626.6,2e-06]
[1739361461239,6.4549331,2626.7,2626.6,2e-06]
[1739361461838,6.96365109,2626.7,2626.6,2e-06]
[1739361462229,3.6437331,2626.7,2626.6,2e-06]
[1739361462433,3.2078,2626.7,2626.6,2e-06]
[1739361462639,3.6437331,2626.7,2626.6,2e-06]
[1739361464535,5.3087331,2626.7,2626.6,2e-06]
[1739361464934,0.4359331,2626.7,2626.6,2e-06]
[1739361465138,5.52301808,2626.9,2626.6,2e-06]
[1739361465437,0.4359331,2626.8,2626.6,2e-06]
[1739361465639,1.0073331,2626.8,2626.6,2e-06]
[1739361466032,0.5714,2626.8,2626.6,2e-06]
[1739361466232,0.4359331,2626.8,2626.6,2e-06]
[1739361469235,3.2078,2626.7,2626.6,2e-06]
[1739361470536,0.4359331,2626.8,2626.6,2e-06]
[1739361473542,3.85801808,2626.9,2626.6,2e-06]
[1739361474847,0.05492847,2626.9,2626.6,3.42208698]
[1739361475044,0.005712,2627.1,2626.7,4.9353]
[1739361475347,0.005712,2627.1,2626.7,45.7353]
[1739361476447,0.005712,2627.1,2626.7,4.9353]
[1739361477047,0.005712,2627.1,2626.7,45.7353]
[1739361477248,0.005712,2627.1,2626.7,4.9353]
[1739361478448,0.606312,2627.1,2626.7,4.9353]
[1739361484442,0.005712,2627.1,2626.7,4.9353]
[1739361484939,3.2078,2627.9,2627.0,3.2078]
[1739361485140,3.2078,2627.9,2627.3,3.2078]
[1739361485347,3.2078,2627.9,2627.4,1.1294]
[1739361485946,3.2078,2627.9,2627.4,41.9294]
[1739361486146,3.213512,2627.9,2627.4,1.1294]
[1739361487955,6.63559698,2627.9,2627.4,1.1294]
[1739361489257,6.63559698,2627.9,2627.3,3.2078]
[1739361489258,3.42208498,2627.6,2627.3,3.2078]
[1739361489462,0.562,2627.5,2627.3,3.2078]
[1739361490255,0.562,2627.5,2627.4,0.18910435]
[1739361490554,1.684,2627.7,2627.4,0.18910435]
[1739361490763,0.5596,2627.8,2627.4,40.98910435]
[1739361490958,4.899512,2627.9,2627.5,1.1397]
[1739361491152,4.899512,2627.9,2627.6,0.6002]
[1739361491556,3.213512,2627.9,2627.6,0.6002]
[1739361493162,6.63559698,2627.9,2627.6,0.6002]
[1739361496563,6.63559698,2627.9,2627.4,0.18910435]
[1739361499468,3.213512,2627.9,2627.4,0.18910435]
[1739361499770,3.213512,2627.9,2627.5,1.717]
[1739361499974,6.63559698,2627.9,2627.4,0.18910435]
[1739361504866,3.42208498,2627.6,2627.4,0.18910435]